[Event "7th Sharjah Masters 2024"]
[Site "Sharjah"]
[Date "2024.05.15"]
[Round "2.1"]
[White "Theodorou, Nikolas"]
[Black "Erigaisi Arjun"]
[Result "1-0"]
[ECO "D41"]
[WhiteElo "2617"]
[BlackElo "2762"]
[Annotator "TA"]
[PlyCount "55"]
[EventDate "2024.05.13"]
[EventType "swiss"]
[EventCountry "UAE"]
[SourceTitle "playchess.com"]
[Source "ChessBase"]
[SourceQuality "1"]
[TimeControl "5400+30"]

{[%evp 26,55,0,0,14,0,0,0,0,0,0,0,0,0,-11,0,0,0,0,0,0,0,0,-21,170,165,154,154,210,209,1246,1238]} 1. d4 {[%emt 0:00:02]} Nf6 {[%emt 0:01:30]} 2. c4 {[%emt 0:00:04]} e6 {[%emt 0:00:05]} 3. Nf3 {[%emt 0:00:05]} d5 {[%emt 0:00:06]} 4. Nc3 {[%emt 0:00:08]} c5 {[%emt 0:01:00]} 5. cxd5 {[%emt 0:00:32]} Nxd5 {[%emt 0:00:06]} 6. e4 {[%emt 0:00:48]} Nxc3 {[%emt 0:00:17]} 7. bxc3 {[%emt 0:00:03]} cxd4 {[%emt 0:00:05]} 8. cxd4 {[%emt 0:00:08]} Bb4+ {[%emt 0:00:04]} 9. Bd2 {[%emt 0:00:09]} Bxd2+ {[%emt 0:00:04]} 10. Qxd2 {[%emt 0:00:05]} O-O {[%emt 0:00:06]} 11. Bc4 {[%emt 0:00:13]} Nd7 {[%emt 0:00:42]} 12. O-O {[%emt 0:00:47]} b6 {[%emt 0:00:05]} 13. Rad1 {[%emt 0:02:25]} Bb7 {[%emt 0:00:52]} 14. Rfe1 {[%emt 0:00:17]} Nf6 {[%emt 0:00:09]} 15. Qf4 {[%emt 0:05:32][%cal Od4d5]} Rc8 {[%emt 0:01:31]} 16. Bb3 {[%emt 0:00:27][%cal Od4d5]} Qc7 {[%emt 0:00:08] The position is equal.} 17. Qh4 {[%emt 0:08:44]} h6 {[%emt 0:00:27] Dodges Ng5} 18. h3 {[%emt 0:01:16]} Rfd8 {[%emt 0:01:39]} 19. Re3 {[%emt 0:00:28]} b5 {[%emt 0:03:28]} 20. d5 $1 {[%emt 0:09:27]} exd5 {[%emt 0:04:33]} 21. e5 {[%emt 0:00:07]} Ne4 {[%emt 0:00:22]} 22. e6 $36 {[%emt 0:00:23][%mdl 2048] White has good play.} fxe6 {[%emt 0:00:54]} 23. Nd4 {[%emt 0:00:06][%csl LRb5,LRe6]} Nc5 {[%emt 0:05:08]} 24. Rde1 {[%emt 0:08:49]} a5 $2 {[%emt 0:04:14] [#] Loses the game.} ({Don't go for} 24... Nxb3 $2 25. Nxe6 (25. axb3 Rd7 $16) 25... d4 26. Rg3 $18 (26. Nxc7 dxe3 27. axb3 exf2+ 28. Qxf2 Rxc7 $18) (26. axb3 Qd6 $11)) (24... Re8 $11) 25. Nxe6 $18 {[%emt 0:13:36]} Nxe6 {[%emt 0:00:46]} 26. Rxe6 {[%emt 0:02:42] Black must now prevent Qg4.} Rd7 {[%emt 0:32:24]} (26... Kh8 $16 {was worth a try.}) 27. Qg4 {[%emt 0:15:35][%mdl 1024] White has strong compensation.} Rf8 {[%emt 0:07:00] [#]} (27... Rf7) 28. Qg6 $1 {[%emt 0:02:54] Weighted Error Value: White=0.03 (flawless) /Black=0.33.  Loses game:     	---       	Black=1      Mistake:       	---       	Black=2      OK:         	White=6     	Black=6      Best:        	White=1     	---        Strong:       	White=2     	---} ({Not} 28. Rxh6 Re7 $16) 1-0

[Event "7th Sharjah Masters 2024"]
[Site "Sharjah"]
[Date "2024.05.15"]
[Round "2.2"]
[White "Ivanchuk, Vasyl"]
[Black "Tabatabaei, M. Amin"]
[Result "0-1"]
[ECO "E10"]
[WhiteElo "2609"]
[BlackElo "2707"]
[Annotator "TA"]
[PlyCount "96"]
[EventDate "2024.05.13"]
[EventType "swiss"]
[EventCountry "UAE"]
[SourceTitle "playchess.com"]
[Source "ChessBase"]
[SourceQuality "1"]
[TimeControl "5400+30"]

{[%evp 10,96,10,6,5,0,0,0,0,0,7,8,20,12,8,22,24,23,43,34,37,19,10,10,23,0,31,0,0,0,0,0,0,0,0,0,0,0,0,-6,0,0,0,0,0,0,-4,-7,0,-23,-12,-61,-8,-85,-96,-93,-68,-121,-118,-130,-78,-243,-283,-579,-633,-611,-592,-455,-444,-338,-358,-872,-174,-2116,-1857,-29974,-29975,-29975,-29976,-29976,-29977,-29977,-29977,-29981,8,-29982,-29983,-29983,-29984]} 1. d4 {[%emt 0:00:03]} Nf6 {[%emt 0:00:18]} 2. c4 {[%emt 0:00:12]} e6 {[%emt 0:00:10]} 3. Nf3 {[%emt 0:00:06]} h6 {[%emt 0:01:47]} 4. a3 {[%emt 0:06:11]} d5 {[%emt 0:00:35]} 5. e3 {[%emt 0:00:06]} Nbd7 $146 {[%emt 0:04:34]} ({Predecessor:} 5... b6 6. b4 dxc4 7. Bxc4 Bb7 8. Nc3 Bd6 9. Qe2 Nbd7 10. Bb2 a5 11. Nb5 Be7 12. bxa5 Rxa5 {1-0 Litchfield,F (2134)-Ikeda,J (2417) Doeberl Cup Canberra 2023 (3)}) 6. Nbd2 {[%emt 0:02:07] E10: Blumenfeld Gambit.} b6 {[%emt 0:03:06]} 7. cxd5 {[%emt 0:09:01]} exd5 {[%emt 0:00:32]} 8. b4 {[%emt 0:00:04]} Bd6 {[%emt 0:01:04]} 9. Bb2 {[%emt 0:00:29]} a6 {[%emt 0:07:43]} 10. g3 {[%emt 0:01:20]} c5 {[%emt 0:02:36]} 11. dxc5 {[%emt 0:17:54]} bxc5 {[%emt 0:00:05]} 12. Qa4 {[%emt 0:00:02]} O-O {[%emt 0:08:47]} 13. Qc6 {[%emt 0:00:12]} Qc7 {[%emt 0:05:57]} 14. Qxc7 $1 {[%emt 0:16:12]} ({Stronger than} 14. Qxa8 Nb6 (14... cxb4 $2 {is the wrong capture.} 15. Rc1 $18) 15. bxc5 Nxa8 $17) 14... Bxc7 {[%emt 0:00:32]} 15. Bg2 {[%emt 0:05:54]} cxb4 {[%emt 0:06:52]} 16. axb4 {[%emt 0:00:27]} Bd6 {[%emt 0:00:04]} 17. b5 {[%emt 0:08:05]} Nb6 {[%emt 0:05:50]} 18. Nd4 {[%emt 0:18:00]} Bb4 {[%emt 0:01:25]} 19. Nc6 {[%emt 0:00:20]} Bxd2+ {[%emt 0:00:39]} 20. Kxd2 {[%emt 0:00:00]} Nc4+ {[%emt 0:00:52]} 21. Kc2 {[%emt 0:05:35]} Nxb2 {[%emt 0:01:22]} 22. Kxb2 {[%emt 0:00:41]} Bb7 {[%emt 0:00:03]} 23. Rhc1 {[%emt 0:06:00]} axb5 {[%emt 0:00:49]} 24. Ne7+ {[%emt 0:00:46]} Kh7 {[%emt 0:04:15]} 25. Rc7 {[%emt 0:00:01]} Rxa1 {[%emt 0:02:02]} 26. Kxa1 {[%emt 0:00:01]} Ba8 {[%emt 0:00:11]} 27. Bh3 {[%emt 0:03:37]} g6 {[%emt 0:06:34]} 28. Kb2 {[%emt 0:00:23]} Kg7 {[%emt 0:03:34]} 29. f3 {[%emt 0:00:16]} Rd8 {[%emt 0:05:01]} 30. Kc1 {[%emt 0:00:49]} (30. Nc8 $11 {deserves consideration.}) 30... b4 {[%emt 0:00:34]} (30... Ne8 $15 31. Ra7 d4) 31. Rc8 {[%emt 0:00:28]} (31. Nc8 $1 $11 {remains equal.}) 31... Rxc8+ $17 {[%emt 0:00:19]} 32. Nxc8 {[%emt 0:00:02]} Bb7 {[%emt 0:01:56]} 33. Na7 {[%emt 0:00:01]} (33. Kc2 $15) 33... d4 $17 {[%emt 0:06:36]} 34. e4 {[%emt 0:00:06]} g5 {[%emt 0:02:29]} (34... Nh7 $142 $1 35. Bg2 Ng5) 35. Bf5 $2 {[%emt 0:01:44] [#]} (35. e5 $17 {keeps fighting.}) 35... g4 $1 $19 {[%emt 0:00:27]} 36. e5 $2 {[%emt 0:00:23]} (36. f4 Nxe4 (36... Bxe4 37. Bxe4 Nxe4 38. Nc6 $17) 37. Nb5) 36... gxf3 $1 $19 {[%emt 0:00:28]} 37. exf6+ {[%emt 0:00:04]} Kxf6 {[%emt 0:00:03]} 38. Bd3 {[%emt 0:01:04]} f2 {[%emt 0:03:43]} 39. Bf1 {[%emt 0:00:02]} Ke5 {[%emt 0:00:05]} 40. Kd2 $2 {[%emt 0:00:22]} (40. Nb5 Ba6 41. Bc4) 40... b3 $2 {[%emt 0:08:08]} (40... Kd6 41. Nb5+ Kc5) 41. Nb5 $2 {[%emt 0:00:02]} (41. Kc1) 41... Ba6 $19 {[%emt 0:01:57]} ({Less strong is} 41... Be4 42. Kc1 $17) 42. Bd3 {[%emt 0:00:12]} Bxb5 {[%emt 0:04:05]} 43. Bxb5 {[%emt 0:00:01]} b2 {[%emt 0:00:07]} 44. Kc2 {[%emt 0:00:04]} Ke4 {[%emt 0:00:02]} 45. Bf1 {[%emt 0:00:32]} Ke3 {[%emt 0:00:06]} 46. g4 {[%emt 0:02:11]} b1=Q+ {[%emt 0:00:42]} 47. Kxb1 {[%emt 0:00:03] [#]} Kd2 $1 {[%emt 0:00:05]} 48. Bh3 {[%emt 0:00:21]} Ke2 {[%emt 0:00:34]} 0-1

[Event "7th Sharjah Masters 2024"]
[Site "Sharjah"]
[Date "2024.05.15"]
[Round "2.3"]
[White "Kuybokarov, Temur"]
[Black "Fedoseev, Vladimir"]
[Result "0-1"]
[ECO "C42"]
[WhiteElo "2602"]
[BlackElo "2702"]
[Annotator "TA"]
[PlyCount "88"]
[EventDate "2024.05.13"]
[EventType "swiss"]
[EventCountry "UAE"]
[SourceTitle "playchess.com"]
[Source "ChessBase"]
[SourceQuality "1"]
[TimeControl "5400+30"]

{[%evp 15,88,20,35,33,29,28,35,0,0,0,0,0,0,-48,-31,-62,-54,-67,-63,-56,-68,-59,-54,-51,-60,-58,-50,-83,-75,-73,-37,-83,-85,-82,-83,-96,-104,-101,-99,-118,-120,-119,-80,-81,-87,-102,-74,-74,-76,-125,-128,-156,-127,-166,-117,-275,-272,-279,-261,-254,-256,-247,-240,-397,-395,-5181,-5173,-4730,-4133,-29969,-29970,-29966,-29948,-29971,-29971]} 1. e4 {[%emt 0:00:04]} e5 {[%emt 0:03:16]} 2. Nf3 {[%emt 0:00:10]} Nf6 {[%emt 0:00:10]} 3. Nxe5 {[%emt 0:00:41]} d6 {[%emt 0:00:08][%cal Bd7d6,Bd6d5][%mdl 32]} 4. Nf3 {[%emt 0:00:23]} Nxe4 {[%emt 0:00:09]} 5. d4 {[%emt 0:00:26]} d5 {[%emt 0:00:10]} 6. Bd3 {[%emt 0:00:14]} Bd6 {[%emt 0:00:06]} 7. O-O {[%emt 0:00:21]} O-O {[%emt 0:00:05]} 8. Re1 {[%emt 0:06:42]} Re8 {[%emt 0:00:24]} 9. c4 {[%emt 0:00:48]} Bg4 {[%emt 0:00:02]} 10. cxd5 {[%emt 0:06:50]} Nf6 {[%emt 0:00:01]} 11. Nc3 {[%emt 0:10:20] White is slightly better.} Rxe1+ {[%emt 0:07:12]} 12. Qxe1 {[%emt 0:00:12]} Bxf3 {[%emt 0:00:04]} 13. gxf3 {[%emt 0:00:04]} Nh5 {[%emt 0:01:03]} 14. Ne2 {[%emt 0:26:43]} (14. Qe4 $11 g6 15. Qg4) 14... Qh4 $15 {[%emt 0:08:18]} 15. Ng3 {[%emt 0:00:49]} Nf6 {[%emt 0:00:06][%cal Ob8d7] Prevents Qe8+.} 16. Qe3 {[%emt 0:04:07]} Nbd7 {[%emt 0:02:05][%cal Oa8e8]} 17. Qg5 {[%emt 0:02:53]} Bxg3 {[%emt 0:03:40]} 18. hxg3 {[%emt 0:13:28]} Qxd4 {[%emt 0:00:08]} 19. Qd2 {[%emt 0:03:54][%cal Od3h7] [#] Hoping for Bxh7+!} Qxd5 {[%emt 0:07:26]} (19... Nxd5 $2 20. Bxh7+ Kxh7 21. Qxd4 $18) 20. Qc3 {[%emt 0:03:10]} Re8 {[%emt 0:04:13]} (20... Qxf3 $2 {perishes.} 21. Bxh7+ Nxh7 22. Qxf3 $18) 21. Bd2 {[%emt 0:00:46]} Ne5 {[%emt 0:04:23]} (21... Qxf3 $2 {too greedy.} 22. Bxh7+ Nxh7 23. Qxf3 $18) 22. Be2 {[%emt 0:00:19]} c5 {[%emt 0:04:07]} 23. b3 {[%emt 0:05:46]} (23. Rd1 $15 {should be considered.}) 23... Nc6 $17 {[%emt 0:06:11] Black is more active.} 24. Bc4 {[%emt 0:00:43]} Qf5 {[%emt 0:02:38]} 25. Kg2 {[%emt 0:03:59]} Rd8 {[%emt 0:01:51]} 26. Re1 {[%emt 0:02:14]} h6 {[%emt 0:04:59]} (26... Nd5 {simplifies} 27. Bxd5 Qxd5 28. Qe3 h6) 27. Be3 {[%emt 0:01:35][%cal Oe3c5]} b6 {[%emt 0:01:11]} 28. Qc1 {[%emt 0:01:05]} Ne5 {[%emt 0:05:15]} 29. Bf4 {[%emt 0:00:33]} Nxc4 {[%emt 0:01:59]} (29... Ng6 {is interesting.} 30. Bc7 Rd4 31. Bb8 b5) 30. bxc4 {[%emt 0:00:19]} Qd3 {[%emt 0:06:09]} 31. Be5 {[%emt 0:01:47]} Nh7 $36 {[%emt 0:00:52][%mdl 2048] Black has strong initiative.} 32. Re3 {[%emt 0:00:21]} ({White should try} 32. Bc7 Rc8 33. Rd1) 32... Qd7 {[%emt 0:00:14]} 33. Qh1 {[%emt 0:01:17]} Re8 {[%emt 0:03:19]} 34. Qh5 {[%emt 0:02:32]} Nf8 {[%emt 0:01:23]} (34... f6 $19 35. Bf4 Rxe3 36. Bxe3 f5) 35. Qg4 $2 {[%emt 0:01:50] This move loses the game for White.} (35. f4 $17 {might work better.}) 35... Qxg4 $19 {[%emt 0:01:58]} (35... f6 36. Bf4 Qxg4 37. fxg4 Rxe3 38. Bxe3 $19) 36. fxg4 {[%emt 0:00:05][%mdl 4096] Endgame. KRB-KRN} Nd7 {[%emt 0:00:08]} 37. f4 {[%emt 0:00:29] [#]} Nxe5 {[%emt 0:00:28]} 38. fxe5 {[%emt 0:00:26] KR-KR} f6 {[%emt 0:01:45]} 39. Kf3 $2 {[%emt 0:01:00]} (39. e6) 39... Rxe5 {[%emt 0:01:25]} 40. Rxe5 {[%emt 0:00:07]} (40. Rd3) 40... fxe5 {[%emt 0:00:01]} 41. Ke4 {[%emt 0:00:07]} Kf7 {[%emt 0:00:06] ( -> ...Kg6)} 42. Kxe5 {[%emt 0:00:18]} Kg6 {[%emt 0:00:06] Black mates.} 43. Kf4 {[%emt 0:01:05]} Kf6 {[%emt 0:00:07]} 44. a4 {[%emt 0:00:56]} g6 {[%emt 0:01:19] Weighted Error Value: White=0.48/Black=0.07 (flawless) .  Mistake:       	White=6     	Black=1      Inaccurate:     	White=3     	Black=2      OK:         	White=9     	Black=17     Best:        	White=2     	Black=2} 0-1

[Event "7th Sharjah Masters 2024"]
[Site "Sharjah"]
[Date "2024.05.15"]
[Round "2.4"]
[White "Niemann, Hans Moke"]
[Black "Vakhidov, Jakhongir"]
[Result "1-0"]
[ECO "C74"]
[WhiteElo "2689"]
[BlackElo "2599"]
[Annotator "TA"]
[PlyCount "73"]
[EventDate "2024.05.13"]
[EventType "swiss"]
[EventCountry "UAE"]
[SourceTitle "playchess.com"]
[Source "ChessBase"]
[SourceQuality "1"]
[TimeControl "5400+30"]

{[%evp 15,73,42,66,49,60,63,197,196,231,96,107,101,104,120,100,66,79,69,137,67,220,222,272,262,264,239,350,352,434,444,435,387,481,456,460,431,1014,1006,1007,1006,1815,1721,29985,29986,29986,29987,29991,29992,29992,29993,29993,29992,29992,29991,29992,29993,29993,29992,29995,29988]} 1. e4 {[%emt 0:00:06]} e5 {[%emt 0:12:21]} 2. Nf3 {[%emt 0:00:50]} Nc6 {[%emt 0:00:06]} 3. Bb5 {[%emt 0:06:10]} a6 {[%emt 0:00:09]} 4. Ba4 {[%emt 0:00:06]} d6 {[%emt 0:00:04]} 5. c3 {[%emt 0:02:39]} f5 {[%emt 0:00:02]} 6. exf5 {[%emt 0:00:43]} Bxf5 {[%emt 0:00:03]} 7. O-O {[%emt 0:01:20]} Bd3 {[%emt 0:00:03]} 8. Re1 {[%emt 0:00:06]} Be7 {[%emt 0:04:39]} 9. Qb3 {[%emt 0:01:30]} b5 {[%emt 0:24:35]} 10. Qd5 $1 {[%emt 0:00:22][%csl LRc6,LRd3]} Bf5 {[%emt 0:00:02]} (10... Qd7 $14 11. Qxd3 bxa4) 11. Bb3 $1 $18 {[%emt 0:08:38] Intending Qf7+ and mate. White is clearly better.} (11. Qxc6+ Bd7 12. Qb7 Rb8 13. Qxa6 Rb6) 11... Kd7 {[%emt 0:07:19] [#]} 12. Nd4 $1 {[%emt 0:09:29][%mdl 512]} Nxd4 $16 {[%emt 0:00:07]} 13. cxd4 $40 {[%emt 0:00:09][%mdl 128] White has strong attack.} Nf6 {[%emt 0:10:45]} 14. Qf3 {[%emt 0:00:56] Really sharp!} Bg4 {[%emt 0:00:51]} 15. Qg3 {[%emt 0:00:38] White has more active pieces.} (15. Qd3 {keeps more tension.} Kc6 16. a4 Qd7 17. h3) 15... exd4 {[%emt 0:00:45]} 16. h3 {[%emt 0:02:41]} Bf5 {[%emt 0:01:06] [#]} 17. Qf3 {[%emt 0:00:46] Prevents d5} (17. d3 $1 $16) 17... g6 $2 {[%emt 0:04:59]} (17... Bg6 $14) 18. d3 $18 {[%emt 0:02:00][%mdl 1024] g4 is the strong threat. White has strong compensation.} ({Don't take} 18. g4 $6 Be4 19. Rxe4 Nxe4 20. Qxe4 c6 $16) 18... h5 {[%emt 0:04:57]} 19. Bg5 {[%emt 0:00:48]} c6 {[%emt 0:03:39]} 20. Nd2 {[%emt 0:00:32][%cal Bb1d2,Bd2f3,Bf3e5][%mdl 32]} Qf8 {[%emt 0:03:47]} (20... Re8 $142 21. a4 d5 22. Bxf6 Bxf6) 21. a4 {[%emt 0:02:27]} Qg7 {[%emt 0:02:31]} 22. Rec1 {[%emt 0:02:53]} d5 {[%emt 0:07:10]} 23. Qf4 {[%emt 0:00:13] Hoping for Nf3.} c5 {[%emt 0:07:43]} 24. Nf3 {[%emt 0:08:37]} Bd6 {[%emt 0:00:32]} 25. Ne5+ {[%emt 0:00:21]} Kc7 {[%emt 0:00:27] [#]} (25... Bxe5 $142 26. Qxe5 Qe7 27. Qxf6 (27. Bxf6 Qxe5 28. Bxe5 Rhe8 $18) 27... Qxf6 28. Bxf6 c4 29. Bxh8 Rxh8 30. axb5 axb5 31. dxc4 bxc4 32. Bxc4 dxc4 33. Rxc4 d3) 26. Rxc5+ $3 {[%emt 0:01:52][%mdl 512]} Bxc5 {[%emt 0:01:00]} 27. Rc1 {[%emt 0:00:05]} Kb6 {[%emt 0:02:41][%cal Bc7b6,Bb6a5,Ba5b4,Bb4b3,Bb3c2,Bc2d2][%mdl 32]} 28. Bxf6 {[%emt 0:00:28]} Qh6 {[%emt 0:00:07] [#]} 29. Nd7+ $1 {[%emt 0:07:44][%mdl 512] White mates.} Bxd7 {[%emt 0:00:03]} 30. a5+ {[%emt 0:00:02]} Kxa5 {[%emt 0:00:05]} 31. Qc7+ {[%emt 0:00:05]} Bb6 {[%emt 0:00:03]} 32. Ra1+ {[%emt 0:00:10]} Kb4 {[%emt 0:00:04]} 33. Qxb6 {[%emt 0:00:16]} Kxb3 {[%emt 0:00:43]} 34. Qxd4 {[%emt 0:00:12][%csl Gb2,Gf6][%cal Rd4c3]} Rhc8 {[%emt 0:00:45]} 35. Qxd5+ {[%emt 0:00:04]} Kc2 {[%emt 0:00:05]} 36. b4 {[%emt 0:00:19]} Kd2 {[%emt 0:01:30]} 37. Bg5+ {[%emt 0:00:07] Weighted Error Value: White=0.10 (very precise) /Black=0.67.  Mistake:       	White=2     	Black=4      Inaccurate:     	White=1     	---        OK:         	White=8     	Black=6      Best:        	White=2     	Black=4      Strong:       	White=2     	---} 1-0

[Event "7th Sharjah Masters 2024"]
[Site "Sharjah"]
[Date "2024.05.15"]
[Round "2.5"]
[White "Muradli, Mahammad"]
[Black "Aravindh, Chithambaram VR."]
[Result "0-1"]
[ECO "A17"]
[WhiteElo "2561"]
[BlackElo "2671"]
[Annotator "TA"]
[PlyCount "74"]
[EventDate "2024.05.13"]
[EventType "swiss"]
[EventCountry "UAE"]
[SourceTitle "playchess.com"]
[Source "ChessBase"]
[SourceQuality "1"]
[TimeControl "5400+30"]

{[%evp 13,74,8,22,20,28,19,18,0,20,-3,22,24,24,23,29,16,16,16,14,0,17,19,21,10,11,14,37,29,43,30,25,28,36,0,8,0,0,0,0,0,0,-106,-103,-303,-327,-339,-350,-488,-409,-442,-430,-940,-930,-956,-922,-951,-949,-806,-896,-862,-769,-1715,-1632]} 1. Nf3 {[%emt 0:02:44]} Nf6 {[%emt 0:00:08]} 2. c4 {[%emt 0:00:07]} e6 {[%emt 0:00:09]} 3. Nc3 {[%emt 0:00:05]} Bb4 {[%emt 0:00:19]} 4. g3 {[%emt 0:07:45]} b6 {[%emt 0:00:15]} 5. Bg2 {[%emt 0:02:30]} Bb7 {[%emt 0:00:09]} 6. Qc2 {[%emt 0:04:38]} O-O {[%emt 0:03:16]} 7. O-O {[%emt 0:05:05]} Re8 {[%emt 0:13:13]} 8. a3 {[%emt 0:08:34]} Bxc3 {[%emt 0:01:31]} 9. Qxc3 {[%emt 0:00:08]} d5 {[%emt 0:09:56]} 10. d3 {[%emt 0:04:33] The position is equal.} c5 {[%emt 0:02:31]} 11. b3 {[%emt 0:24:02]} Nbd7 {[%emt 0:24:58]} 12. e3 {[%emt 0:01:52]} e5 {[%emt 0:04:57]} 13. cxd5 {[%emt 0:01:42]} Nxd5 {[%emt 0:00:12]} 14. Qc2 {[%emt 0:00:52]} N5f6 {[%emt 0:14:00]} 15. Bb2 {[%emt 0:00:45]} e4 {[%emt 0:00:24]} 16. Ne1 {[%emt 0:11:34]} exd3 {[%emt 0:05:35]} 17. Nxd3 {[%emt 0:03:35]} Bxg2 {[%emt 0:00:09]} 18. Kxg2 {[%emt 0:00:05]} Qc7 {[%emt 0:00:55]} 19. Rfe1 {[%emt 0:02:23]} Rac8 {[%emt 0:01:34]} (19... Qc6+ {feels hotter.} 20. f3 g5 21. Nf2 g4) 20. Rac1 {[%emt 0:01:46]} b5 {[%emt 0:02:26][%cal Bb6b5,Bb5c4][%mdl 32]} 21. f3 {[%emt 0:03:47][%cal Ob2d4]} c4 {[%emt 0:01:27]} 22. bxc4 {[%emt 0:01:20]} bxc4 {[%emt 0:00:08]} 23. Nf4 {[%emt 0:02:20] Wards off Nd5} Ne5 {[%emt 0:00:06]} 24. e4 {[%emt 0:04:21]} g5 {[%emt 0:07:45]} 25. Nh3 {[%emt 0:03:19]} g4 {[%emt 0:03:42]} 26. fxg4 {[%emt 0:00:14]} Nexg4 {[%emt 0:00:23] A dynamic duo of knights.} 27. Qd2 {[%emt 0:02:51]} (27. Nf2 $11) 27... Nxe4 $17 {[%emt 0:01:42]} (27... Rxe4 $2 {loses.} 28. Qg5+ Kf8 29. Bxf6 $18 (29. Rxe4 Qb7 $18)) 28. Rxe4 {[%emt 0:00:16] This move loses the game for White.} Rxe4 $19 {[%emt 0:00:05]} 29. Qg5+ {[%emt 0:00:03]} Kf8 {[%emt 0:00:06]} 30. Nf4 {[%emt 0:01:31] [#] Qg7+ is the strong threat.} Qb7 {[%emt 0:00:54]} 31. Qg7+ {[%emt 0:00:19]} Ke8 {[%emt 0:00:08] Black is clearly winning.} 32. Qg8+ {[%emt 0:00:41]} (32. Kg1 $142 Qb6+ 33. Kh1) 32... Ke7 {[%emt 0:00:08]} 33. Qg5+ {[%emt 0:00:07]} Kd6 {[%emt 0:00:43]} 34. Kh3 {[%emt 0:01:02]} Nf2+ {[%emt 0:00:19]} 35. Kh4 {[%emt 0:00:03]} Qxb2 {[%emt 0:00:10]} 36. Rf1 {[%emt 0:00:59] [#]} Qe5 $1 {[%emt 0:00:46]} 37. Qh6+ {[%emt 0:00:21]} (37. Rxf2 Qxg5+) 37... Qe6 {[%emt 0:00:15] Weighted Error Value: White=0.65/Black=0.11 (very precise) .  Loses game:     	White=1     	---        Mistake:       	White=2     	---        Inaccurate:     	White=2     	---        OK:         	White=9     	Black=9      Best:        	White=2     	Black=2} 0-1

[Event "7th Sharjah Masters 2024"]
[Site "Sharjah"]
[Date "2024.05.15"]
[Round "2.6"]
[White "Kacharava, Nikolozi"]
[Black "Nguyen, Thai Dai Van"]
[Result "1/2-1/2"]
[ECO "C48"]
[WhiteElo "2527"]
[BlackElo "2650"]
[Annotator "TA"]
[PlyCount "61"]
[EventDate "2024.05.13"]
[EventType "swiss"]
[EventCountry "UAE"]
[SourceTitle "playchess.com"]
[Source "ChessBase"]
[SourceQuality "1"]
[TimeControl "5400+30"]

{[%evp 9,61,7,19,10,15,11,16,19,10,8,20,16,22,0,0,3,9,0,0,0,12,10,1,-16,-14,-3,-10,-10,-10,-6,-18,-47,-50,-51,-45,-50,-25,-70,-48,-57,-33,-32,-19,-17,0,0,0,0,0,0,0,3,10,0]} 1. e4 {[%emt 0:00:13]} e5 {[%emt 0:00:08]} 2. Nf3 {[%emt 0:00:32]} Nc6 {[%emt 0:00:08]} 3. Bb5 {[%emt 0:00:37]} Nf6 {[%emt 0:00:09]} 4. Nc3 {[%emt 0:01:04][%cal Bb1c3,Bc3d5,Bd5e3][%mdl 32]} Bd6 {[%emt 0:01:18]} 5. d3 {[%emt 0:01:14]} O-O {[%emt 0:00:13]} 6. Ba4 {[%emt 0:01:02]} Re8 {[%emt 0:06:45]} 7. Bg5 {[%emt 0:02:10]} h6 {[%emt 0:07:50]} 8. Bxf6 {[%emt 0:08:09]} Qxf6 {[%emt 0:02:33]} 9. Nd5 {[%emt 0:00:06]} Qd8 {[%emt 0:05:26]} 10. c3 {[%emt 0:00:53] Prevents Nd4.} Ne7 {[%emt 0:11:17]} 11. Ne3 {[%emt 0:05:08]} c6 {[%emt 0:00:56]} 12. d4 {[%emt 0:08:23]} exd4 {[%emt 0:02:59]} 13. Qxd4 {[%emt 0:00:42]} Bf4 {[%emt 0:04:28]} 14. O-O {[%emt 0:06:55]} Bxe3 {[%emt 0:12:18]} 15. Qxe3 {[%emt 0:09:41]} d5 {[%emt 0:00:26][%cal Oe7f5]} 16. e5 {[%emt 0:07:45]} Qb6 {[%emt 0:05:06]} 17. Qxb6 {[%emt 0:06:47]} axb6 {[%emt 0:00:40]} 18. Bc2 {[%emt 0:00:06]} Bf5 {[%emt 0:00:34]} 19. Bxf5 {[%emt 0:08:57]} Nxf5 {[%emt 0:00:01]} 20. Nd4 {[%emt 0:04:45]} Nxd4 {[%emt 0:04:27]} ({Much weaker is} 20... Rxe5 $6 21. f4 Nxd4 22. fxe5 $14) 21. cxd4 $15 {[%emt 0:00:04][%mdl 4096] Endgame. KRR-KRR} Ra4 {[%emt 0:05:47]} 22. Rfd1 {[%emt 0:00:09]} f6 {[%emt 0:07:20]} 23. f4 {[%emt 0:04:22]} fxe5 {[%emt 0:01:03]} 24. fxe5 {[%emt 0:00:03]} Kf7 {[%emt 0:00:06]} 25. Rd3 {[%emt 0:02:34]} Ke6 {[%emt 0:02:43]} 26. b3 {[%emt 0:02:13] The position is equal.} Ra3 {[%emt 0:00:51]} 27. Rg3 {[%emt 0:00:16]} Re7 {[%emt 0:05:18]} 28. Kf2 {[%emt 0:02:03]} b5 {[%emt 0:01:45]} 29. Ke3 {[%emt 0:02:22]} b4 {[%emt 0:00:06]} 30. h4 {[%emt 0:00:45]} Ra8 {[%emt 0:00:34]} 31. h5 {[%emt 0:16:00] Weighted Error Value: White=0.06 (flawless) /Black=0.05 (flawless) .  Inaccurate:     	White=2     	---        OK:         	White=13    	Black=12} 1/2-1/2